{"text_format":"1","workbook":"xlsx","n_sheets":16,"sheets":["Uvod","V_1","V_2","V_3","V_4","V_5","V_6","V_7","V_8","V_9","V_10","V_11","V_12","V_13","V_14","V_15"],"not_rendered":{"charts":0,"images":20,"macros":1,"external_links":0,"defined_names":0,"comments":0,"pivot_tables":0},"unopened":[],"bounds":{"document_bytes":16777216,"sheet_cells":100000,"rows_first":2000,"rows_last":500,"rows_between":2000,"halvings":0,"cell_chars":16384,"cell_head_chars":4096},"cells_cut":0,"cells_raw":0,"read":"whole","date_system":"1900"}

{"sheet":"Uvod","index":0,"n_rows":23,"n_cols":3,"rows_kept":23,"cut":false,"hidden":false,"merged":[[22,2,23,11],[20,2,21,11]]}
["           ",null,"Tretjina in šestina"]
[]
[]
[null,null,"S pripravljenimi nalogami boš utrdil učno snov o delih celote."]
[]
[null,null,"Naloge so interaktivne (rešuješ jih s pomočjo računalnika)."]
[]
[null,null,"V obarvana polja zapiši ustrezne odgovore."]
[]
[null,null,"Pozoren bodi na navodila za vpisovanje rešitev ob posamezni nalogi."]
[]
[null,null,"Računalnik ti bo sproti sporočal, ali je tvoja vpisana rešitev pravilna."]
[null,null,"Sporočilo (nasmeh) dobiš, ko se premakneš ven iz polja, v katerega si vpisal rešitev."]
[]
[]
[null,null,"Priprava nalog: Damjana Vidmar"]
[]
[]
[null,null,"Uporabljena literatura:"]
[]
[null,null,"Manfreda Kolar, Vida, Mateja Urbančič Jelovšek. Matematika 3. Učbenik za matematiko v tretjem\nrazredu osnovne šole. Ljubljana: Mladinska knjiga, 2006."]
[]
[null,null,"Manfreda Kolar, Vida, Mateja Urbančič Jelovšek. Matematika 3. Delovni zvezek - 1. in 2. del. Ljubljana: Mladinska knjiga, 2006."]

{"sheet":"V_1","index":1,"n_rows":29,"n_cols":17,"rows_kept":29,"cut":false,"hidden":false,"merged":[]}
["        "]
[]
[]
[]
[null,null,null,null,"Navodilo"]
[null,null,null,null,"V obarvano polje pod lik zapiši P, če je pobarvana tretjina lika. "]
[null,null,null,null,"V obarvano polje pod lik zapiši N, če ni pobarvana tretjina lika."]
[]
[]
[]
[]
[]
[]
[]
[]
[]
[null,null,null,null,null,null,null,null,null,null,null,null,null,"p","p","n",{"$f":"IF(OR(E17=0, H17=0, K17=0,), \"Zapiši črko P ali N.\", IF(AND(E17=N17, H17=O17, K17=P17), \"Uspelo ti je!\", \"Popravi. Vsi odgovori niso pravilni.\"))","v":"Zapiši črko P ali N."}]
[]
[]
[]
[]
[]
[]
[]
[]
[]
[]
[]
[null,null,null,null,null,null,null,null,null,null,null,null,null,"p","n","p",{"$f":"IF(OR(E29=0, H29=0, K29=0,), \"Zapiši črko P ali N.\", IF(AND(E29=N29, H29=O29, K29=P29), \"Uspelo ti je!\", \"Popravi. Vsi odgovori niso pravilni.\"))","v":"Zapiši črko P ali N."}]

{"sheet":"V_2","index":2,"n_rows":29,"n_cols":17,"rows_kept":29,"cut":false,"hidden":false,"merged":[]}
["        "]
[]
[]
[]
[null,null,null,null,"Navodilo"]
[null,null,null,null,"V obarvano polje pod lik zapiši P, če je pobarvana šestina lika. "]
[null,null,null,null,"V obarvano polje pod lik zapiši N, če ni pobarvana šestina lika."]
[]
[]
[]
[]
[]
[]
[]
[]
[]
[null,null,null,null,null,null,null,null,null,null,null,null,null,"n","n","p",{"$f":"IF(OR(E17=0, H17=0, K17=0,), \"Zapiši črko P ali N.\", IF(AND(E17=N17, H17=O17, K17=P17), \"Uspelo ti je!\", \"Popravi. Vsi odgovori niso pravilni.\"))","v":"Zapiši črko P ali N."}]
[]
[]
[]
[]
[]
[]
[]
[]
[]
[]
[]
[null,null,null,null,null,null,null,null,null,null,null,null,null,"n","n","p",{"$f":"IF(OR(E29=0, H29=0, K29=0,), \"Zapiši črko P ali N.\", IF(AND(E29=N29, H29=O29, K29=P29), \"Uspelo ti je!\", \"Popravi. Vsi odgovori niso pravilni.\"))","v":"Zapiši črko P ali N."}]

{"sheet":"V_3","index":3,"n_rows":20,"n_cols":12,"rows_kept":20,"cut":false,"hidden":false,"merged":[[17,10,18,10],[14,7,18,7],[15,2,16,2],[17,1,18,3],[14,5,18,5],[14,6,18,6],[15,9,16,9],[17,9,18,9]]}
[]
[]
[]
[]
[]
[]
[]
[]
[]
[null,null,"Navodilo"]
[null,null,"V vse delčke ki jih želiš pobarvati, napiši številko 1.  "]
[null,null,"S tipko Delete na tipkovnici pobrišeš, kar si napačno pobarval."]
[]
[]
[]
[null,null,{"$f":"IF(OR(E20=0, L20=0),\"K\", IF(AND(E20=1, L20=1), \"J\", \"L\"))","v":"K"}]
[]
[null,"Nasmeh dobiš, ko \nje naloga v celoti \npravilno rešena."]
[]
[null,null,null,null,{"$f":"F20+G20+H20","v":0},{"$f":"SUM(F15:F19)","v":0},{"$f":"SUM(G15:G19)","v":0},{"$f":"SUM(H15:H19)","v":0},null,{"$f":"SUM(J16:J18)","v":0},{"$f":"SUM(K18:K18)","v":0},{"$f":"J20+K20","v":0}]

{"sheet":"V_4","index":4,"n_rows":21,"n_cols":14,"rows_kept":21,"cut":false,"hidden":false,"merged":[[17,1,18,3],[18,9,19,9],[18,10,19,10],[18,11,19,11],[15,2,16,2],[14,4,14,7],[15,4,15,7],[16,4,16,7],[18,12,19,12],[16,11,17,11],[16,12,17,12],[17,4,17,7],[18,4,18,7],[19,4,19,7]]}
[]
[]
[]
[]
[]
[]
[]
[]
[]
[null,null,"Navodilo"]
[null,null,"V vse delčke ki jih želiš pobarvati, napiši številko 1.  "]
[null,null,"S tipko Delete na tipkovnici pobrišeš, kar si napačno pobarval."]
[]
[]
[]
[null,null,{"$f":"IF(OR(G21=0, N21=0),\"K\", IF(AND(G21=1, N21=1), \"J\", \"L\"))","v":"K"}]
[]
[null,"Nasmeh dobiš, ko \nje naloga v celoti \npravilno rešena."]
[]
[]
[null,null,null,null,null,null,{"$f":"SUM(E15:H20)","v":0},null,null,{"$f":"SUM(J19:J20)","v":0},{"$f":"SUM(K19:K20)","v":0},{"$f":"SUM(L17:L20)","v":0},{"$f":"SUM(M17:M20)","v":0},{"$f":"SUM(J21:M21)","v":0}]

{"sheet":"V_5","index":5,"n_rows":12,"n_cols":14,"rows_kept":12,"cut":false,"hidden":false,"merged":[[8,1,9,3],[10,1,12,3],[13,3,13,10],[19,3,19,10]]}
["        "]
[]
[]
[null,null,null,null,"Navodilo"]
[null,null,null,null,"V vse kvadratke, ki jih želiš pobarvati, napiši številko 1.  "]
[null,null,null,null,"S tipko Delete na tipkovnici pobrišeš, kar si napačno pobarval."]
[]
[]
[null,{"$f":"IF(AND(I12=4,N12=2),\"J\",\"K\")","v":"K"}]
[]
[null,"Nasmeh dobiš, ko boš pobarval tretjino prvega in tretjino drugega lika."]
[null,null,null,null,null,null,null,null,{"$f":"F9+G9+H9+F10+I9+G10+H10+I10+F11+G11+H11+I11","v":0},null,null,null,null,{"$f":"K9+K10+L10+K11+L11+M11","v":0}]

{"sheet":"V_6","index":6,"n_rows":19,"n_cols":18,"rows_kept":19,"cut":false,"hidden":false,"merged":[[14,1,15,3],[16,1,17,3],[27,5,27,16]]}
[]
[]
[]
[]
[]
[]
[]
[]
[]
[null,null,null,null,"Navodilo"]
[null,null,null,null,"V vse kvadratke, ki jih želiš pobarvati, napiši številko 1.  "]
[null,null,null,null,"S tipko Delete na tipkovnici pobrišeš, kar si napačno pobarval."]
[]
[]
[null,{"$f":"IF(AND(K19=2,R19=3),\"J\",\"K\")","v":"K"}]
[]
[null,"Nasmeh dobiš, ko boš pobarval šestino prvega in šestino drugega lika."]
[]
[null,null,null,null,null,null,null,null,null,null,{"$f":"F17+F18+G17+G18+H17+H18+I17+I18+J17+J18+K17+K18","v":0},null,null,null,null,null,null,{"$f":"M16+M17+M18+N17+N18+O17+O18+P17+P18+Q16+Q17+Q18+R16+R17+R18+S16+S17+S18","v":0}]

{"sheet":"V_7","index":7,"n_rows":25,"n_cols":17,"rows_kept":25,"cut":false,"hidden":false,"merged":[]}
[]
[]
[]
[]
[]
[]
[]
[]
[]
[]
[]
[]
[null,null,null,null,null,"je pojedel tretjino ",null,null,null,null,null,null,"."]
[]
[]
[]
[]
[null,{"$f":"IF(AND(D18=N18, E18=O18, F18=P18, H18=Q18),\"J\", IF(OR(D18=0, E18=0, F18=0, H18=0),\"K\", \"L\"))","v":"K"},"RAČUN: ",null,null,null,"=",null,null,null,null,null,null,6,":",3,2]
[]
[null,null,"Računski znak zapišeš tako, da klikneš v modro polje nato pa klikneš ustrezen računski znak."]
[]
[]
[null,{"$f":"IF(H23=0, \"K\", IF(H23=N23, \"J\", \"L\"))","v":"K"},"ODGOVOR:","   Zajček je pojedel",null,null,null,null,"  korenčka.",null,null,null,null,2]
[]
[null,{"$f":"IF(H25=0, \"K\", IF(H25=N25, \"J\", \"L\"))","v":"K"},null,"       Tretjina od 6 je ",null,null,null,null,".",null,null,null,null,2]

{"sheet":"V_8","index":8,"n_rows":25,"n_cols":19,"rows_kept":25,"cut":false,"hidden":false,"merged":[]}
[]
[]
[]
[]
[]
[]
[]
[]
[]
[]
[]
[]
[null,null,null,null,null,"je pojedel šestino",null,null,null,null,null,null,null,null,null,null,null,null,"."]
[]
[]
[]
[]
[null,{"$f":"IF(AND(D18=N18, E18=O18, F18=P18, H18=Q18),\"J\", IF(OR(D18=0, E18=0, F18=0, H18=0),\"K\", \"L\"))","v":"K"},"RAČUN: ",null,null,null,"=",null,null,null,null,null,null,12,":",6,2]
[]
[null,null,"Računski znak zapišeš tako, da klikneš v modro polje nato pa klikneš ustrezen računski znak."]
[]
[]
[null,{"$f":"IF(H23=0, \"K\", IF(H23=N23, \"J\", \"L\"))","v":"K"},"ODGOVOR:","   Zajček je pojedel",null,null,null,null,"  korenčka.",null,null,null,null,2]
[]
[null,{"$f":"IF(H25=0, \"K\", IF(H25=N25, \"J\", \"L\"))","v":"K"},null,"      Šestina od 12 je ",null,null,null,null,".",null,null,null,null,2]

{"sheet":"V_9","index":9,"n_rows":23,"n_cols":14,"rows_kept":23,"cut":false,"hidden":false,"merged":[]}
[]
[]
[]
[]
[]
[]
[]
[]
[]
[]
[]
[]
[]
[]
[]
[]
[]
[]
[null,{"$f":"IF(E19=0, \"K\", IF(E19=M19, \"J\",\"L\"))","v":"K"},"       Na cesti je",null,null,"avtomobilov.",null,null,null,null,null,null,6]
[]
[null,{"$f":"IF(H21=0, \"K\", IF(H21=M21, \"J\",\"L\"))","v":"K"},"Koliko avtomobilov je rdeče barve?",null,null,null,null,null,null,null,null,null,1]
[]
[null,{"$f":"IF(J23=0, \"K\", IF(OR(J23=M23,J23=N23), \"J\",\"L\"))","v":"K"},"Kolikšen DEL narisanih avtomobilov je rdeče barve?",null,null,null,null,null,null,null,null,null,"šestina","ena šestina"]

{"sheet":"V_10","index":10,"n_rows":23,"n_cols":14,"rows_kept":23,"cut":false,"hidden":false,"merged":[]}
[]
[]
[]
[]
[]
[]
[]
[]
[]
[]
[]
[]
[]
[]
[]
[]
[]
[]
[null,{"$f":"IF(E19=0, \"K\", IF(E19=M19, \"J\",\"L\"))","v":"K"},"       Na cesti je",null,null,"avtomobilov.",null,null,null,null,null,null,6]
[]
[null,{"$f":"IF(H21=0, \"K\", IF(H21=M21, \"J\",\"L\"))","v":"K"},"Koliko avtomobilov je sive barve?",null,null,null,null,null,null,null,null,null,2]
[]
[null,{"$f":"IF(J23=0, \"K\", IF(OR(J23=M23,J23=N23), \"J\",\"L\"))","v":"K"},"Kolikšen DEL narisanih avtomobilov je sive barve?",null,null,null,null,null,null,null,null,null,"tretjina","ena tretjina"]

{"sheet":"V_11","index":11,"n_rows":19,"n_cols":27,"rows_kept":19,"cut":false,"hidden":false,"merged":[[4,10,5,11],[9,2,10,10],[15,2,16,10]]}
[]
[]
[]
[]
[null,null,null,null,null,null,null,null,null,null,{"$f":"IF(AND(F8=D19,C14=F19,D14=G19,E14=H19,G14=J19,P19=3),\"J\",\"K\")","v":"K"}]
[null,null,null,null,null,null,null,null,null,null,null,null,"Nasmeh dobiš, ko boš celo nalogo pravilno rešil."]
[]
[null,null,"               Na sliki je ",null,null,null,"   oranžnih kvadratkov.",null,null,null,null,null,null,null,"V vse kvadratke ki jih želiš pobarvati, napiši številko 1.  "]
[null,null,null,null,null,null,null,null,null,null,null,null,null,null,"S tipko Delete na tipkovnici pobrišeš, kar si napačno pobarval."]
[null,null,"Zapiši račun, ki ti bo povedal, koliko kvadratkov moraš pobarvati."]
[]
[]
[]
[null,null,null,null,null,"="]
[]
[null,null,"Računski znak zapišeš tako, da klikneš v modro polje nato pa klikneš na ustrezen računski znak."]
[]
[]
[null,null,null,9,null,9,":",3,"=",3,null,null,null,null,null,{"$f":"SUM(Q19:AA19)","v":0},{"$f":"Q11+Q12+Q13+Q14+Q15+Q16+Q17","v":0},0,0,0,0,0,0,0,0,0,{"$f":"AA11+AA12+AA13+AA14+AA15+AA16+AA17","v":0}]

{"sheet":"V_12","index":12,"n_rows":19,"n_cols":27,"rows_kept":19,"cut":false,"hidden":false,"merged":[[4,10,5,11],[9,2,10,10],[15,2,16,10]]}
[]
[]
[]
[]
[null,null,null,null,null,null,null,null,null,null,{"$f":"IF(AND(F8=D19,C14=F19,D14=G19,E14=H19,G14=J19,P19=4),\"J\",\"K\")","v":"K"}]
[null,null,null,null,null,null,null,null,null,null,null,null,"Nasmeh dobiš, ko boš celo nalogo rešil pravilno."]
[]
[null,null,"             Na sliki je ",null,null,null,"   oranžnih kvadratkov.",null,null,null,null,null,null,null,"V vse kvadratke ki jih želiš pobarvati, napiši številko 1.  "]
[null,null,null,null,null,null,null,null,null,null,null,null,null,null,"S tipko Delete na tipkovnici pobrišeš, kar si napačno pobarval."]
[null,null,"Zapiši račun, ki ti bo povedal, koliko kvadratkov moraš pobarvati."]
[]
[]
[]
[null,null,null,null,null,"="]
[]
[null,null,"Računski znak zapišeš tako, da klikneš v modro polje nato pa klikneš na ustrezen računski znak."]
[]
[]
[null,null,null,24,null,24,":",6,"=",4,null,null,null,null,null,{"$f":"SUM(Q19:AA19)","v":0},{"$f":"Q11+Q12+Q13+Q14+Q15+Q16+Q17","v":0},0,0,0,0,0,0,0,0,0,0]

{"sheet":"V_13","index":13,"n_rows":24,"n_cols":17,"rows_kept":24,"cut":false,"hidden":false,"merged":[]}
[]
[]
[]
[]
[]
[]
[]
[]
[]
[]
[]
[]
[null,null,"Na ograji je bilo privezanih 18 balonov. Tretjino "]
[null,null,"balonov je veter odnesel."]
[null,null,"Koliko balonov je veter odnesel?"]
[]
[]
[]
[null,{"$f":"IF(AND(D19=N19, E19=O19, F19=P19, H19=Q19),\"J\", IF(OR(D19=0, E19=0, F19=0, H19=0),\"K\", \"L\"))","v":"K"},"RAČUN: ",null,null,null,"=",null,null,null,null,null,null,18,":",3,6]
[]
[null,null,"Računski znak zapišeš tako, da klikneš v modro polje nato pa klikneš ustrezen računski znak."]
[]
[]
[null,{"$f":"IF(G24=0, \"K\", IF(G24=N24, \"J\", \"L\"))","v":"K"},"ODGOVOR:","   Veter je odnesel",null,null,null,"balonov.",null,null,null,null,null,6]

{"sheet":"V_14","index":14,"n_rows":23,"n_cols":17,"rows_kept":23,"cut":false,"hidden":false,"merged":[]}
[]
[]
[]
[]
[]
[]
[]
[]
[]
[]
[]
[]
[null,null,"Miha bo šestino desk v  ograji pobarval z rumeno barvo."]
[null,null,"Koliko desk bo pobarval rumeno?"]
[]
[]
[]
[null,{"$f":"IF(AND(D18=N18, E18=O18, F18=P18, H18=Q18),\"J\", IF(OR(D18=0, E18=0, F18=0, H18=0),\"K\", \"L\"))","v":"K"},"RAČUN: ",null,null,null,"=",null,null,null,null,null,null,12,":",6,2]
[]
[null,null,"Računski znak zapišeš tako, da klikneš v modro polje nato pa klikneš ustrezen računski znak."]
[]
[]
[null,{"$f":"IF(J23=0, \"K\", IF(J23=N23, \"J\", \"L\"))","v":"K"},"ODGOVOR:","   Miha bo z rumeno barvo pobarval ",null,null,null,null,null,null,"deski.",null,null,2]

{"sheet":"V_15","index":15,"n_rows":27,"n_cols":20,"rows_kept":27,"cut":false,"hidden":false,"merged":[[18,9,18,12],[22,9,22,12],[26,9,26,12]]}
[]
[]
[]
[]
[]
[]
[]
[]
[]
[]
[]
[]
[]
[]
[null,{"$f":"IF(G15=0, \"K\", IF(G15=P15, \"J\", \"L\"))","v":"K"},"Koliko rož je na zgornji sliki?",null,null,null,null,null,null,null,null,null,null,null,null,24]
[]
[null,{"$f":"IF(H17=0, \"K\", IF(H17=P17, \"J\", \"L\"))","v":"K"},"Koliko tulipanov je na zgornji sliki?",null,null,null,null,null,null,null,null,null,null,null,null,8]
[]
[null,{"$f":"IF(J19=0, \"K\", IF(OR(J19=P19, J19=Q19, J19=S19, J19=T19), \"J\", \"L\"))","v":"K"},"Kolikšen DEL vseh rož predstavljajo tulipani?",null,null,null,null,null,null,null,null,null,null,null,null,"tretjino","eno tretjino",null,"tretjina","ena tretjina"]
[]
[null,{"$f":"IF(H21=0, \"K\", IF(H21=P21, \"J\", \"L\"))","v":"K"},"Koliko marjetic je na zgornji sliki?",null,null,null,null,null,null,null,null,null,null,null,null,8]
[]
[null,{"$f":"IF(J23=0, \"K\", IF(OR(J23=P23, J23=Q23, J23=S23, J23=T23), \"J\", \"L\"))","v":"K"},"Kolikšen DEL vseh rož predstavljajo marjetice?",null,null,null,null,null,null,null,null,null,null,null,null,"tretjino","eno tretjino",null,"tretjina","ena tretjina"]
[]
[null,{"$f":"IF(H25=0, \"K\", IF(H25=P25, \"J\", \"L\"))","v":"K"},"Koliko vrtnic je na zgornji sliki?",null,null,null,null,null,null,null,null,null,null,null,null,8]
[]
[null,{"$f":"IF(J27=0, \"K\", IF(OR(J27=P27, J27=Q27, J27=S27, J27=T27), \"J\", \"L\"))","v":"K"},"Kolikšen DEL vseh rož predstavljajo vrtnice?",null,null,null,null,null,null,null,null,null,null,null,null,"tretjino","eno tretjino",null,"tretjina","ena tretjina"]